fUST/lending_fUST_20250210
["ID","MTS","AMOUNT","RATE_DAILY","PERIOD"]
[352610550,1739197847235,-500.0,0.00011964,2]
[352610551,1739197847247,-811.23574677,0.00011984,2]
[352610552,1739197847258,-1000.0,0.00011984,2]
[352610553,1739197847268,-1000.0,0.00011984,2]
[352610554,1739197847279,-1500.0,0.00011999,2]
[352610555,1739197847289,-151.0,0.00012,2]
[352610556,1739197847299,-1000.0,0.0001201,2]
[352610557,1739197847309,-481.27583368,0.0001201,2]
[352610558,1739197847319,-500.0,0.00012054,2]
[352610559,1739197847331,-500.0,0.00012054,2]
[352610560,1739197847343,-151.0,0.00012054,2]
[352610561,1739197847353,-151.0,0.00012054,2]
[352610562,1739197847362,-599.21,0.00012054,2]
[352610563,1739197847372,-612.77,0.00012054,2]
[352610564,1739197847384,-151.0,0.00012054,2]
[352610565,1739197847394,-500.0,0.00012054,2]
[352610566,1739197847403,-136.56852821,0.00012054,2]
[352610567,1739197847416,-14.43147179,0.00012054,2]
[352610568,1739197847430,-632.6,0.00012054,2]
[352610569,1739197847441,-500.0,0.00012054,2]
[352610570,1739197847452,-197.69444533,0.00012054,2]
[352610571,1739197847463,-522.02,0.00012054,2]
[352610572,1739197847472,-737.46,0.00012054,2]
[352610573,1739197847483,-151.0,0.00012054,2]
[352610574,1739197847493,-151.0,0.00012054,2]
[352610575,1739197847504,-500.0,0.00012054,2]
[352610576,1739197847515,-179.10073265,0.00012054,2]
[352610577,1739197847526,-500.0,0.00012054,2]
[352610578,1739197847653,-394.98875047,0.00012054,2]
[352610579,1739197847663,-500.0,0.00012054,2]
[352610580,1739197847675,-500.0,0.00012054,2]
[352610581,1739197847685,-500.0,0.00012054,2]
[352610582,1739197847695,-600.05,0.00012054,2]
[352610583,1739197847705,-500.0,0.00012054,2]
[352610584,1739197847714,-2489.88836051,0.00012054,2]
[352610585,1739197847778,-500.0,0.00011369,2]
[352610586,1739197847789,-401.0,0.00011506,2]
[352610587,1739197847800,-12961.12163949,0.00012054,2]
[352610588,1739197847811,-500.0,0.00012054,2]
[352610589,1739197847822,-832.64,0.00012054,2]
[352610590,1739197847832,-500.0,0.00012054,2]
[352610591,1739197847843,-1555.16,0.00012054,2]
[352610592,1739197847853,-6604.89,0.00012054,2]
[352610593,1739197847862,-500.0,0.00012054,2]
[352610594,1739197847871,-500.0,0.00012054,2]
[352610595,1739197847881,-558.35,0.00012054,2]
[352610596,1739197847890,-756.91,0.00012054,2]
[352610597,1739197847901,-503.66,0.00012054,2]
[352610598,1739197847911,-2039.84,0.00012054,2]
[352610599,1739197847920,-500.0,0.00012054,2]
[352610600,1739197847932,-151.0,0.00012054,2]
[352610601,1739197847941,-500.0,0.00012054,2]
[352610602,1739197847952,-281.764323,0.00012054,2]
[352610603,1739197847962,-500.0,0.00012054,2]
[352610604,1739197847971,-281.764323,0.00012054,2]
[352610605,1739197847981,-664.98,0.00012054,2]
[352610606,1739197847991,-500.0,0.00012054,2]
[352610607,1739197848001,-151.0,0.00012054,2]
[352610608,1739197848011,-500.0,0.00012054,2]
[352610609,1739197848021,-500.0,0.00012054,2]
[352610610,1739197848031,-3174.27,0.00012054,2]
[352610611,1739197848040,-178.779312,0.00012054,2]
[352610612,1739197848050,-178.779312,0.00012054,2]
[352610613,1739197848060,-5186.45,0.00012054,2]
[352610614,1739197848070,-500.0,0.00012054,2]
[352610615,1739197848080,-961.7,0.00012054,2]
[352610616,1739197848090,-1378.48,0.00012054,2]
[352610617,1739197848100,-579.9,0.00012054,2]
[352610618,1739197848111,-540.89,0.00012054,2]
[352610619,1739197848122,-1022.13,0.00012054,2]
[352610620,1739197848134,-500.0,0.00012054,2]
[352610621,1739197848145,-1347.21,0.00012054,2]
[352610622,1739197848156,-619.93,0.00012054,2]
[352610623,1739197848167,-500.0,0.00012054,2]
[352610624,1739197848180,-500.0,0.00012054,2]
[352610625,1739197848192,-500.0,0.00012054,2]
[352610626,1739197848204,-538.09,0.00012054,2]
[352610627,1739197848214,-500.0,0.00012054,2]
[352610628,1739197848226,-904.0,0.00012054,2]
[352610629,1739197848237,-500.0,0.00012054,2]
[352610630,1739197848249,-518.8,0.00012054,2]
[352610631,1739197848261,-1280.31,0.00012054,2]
[352610632,1739197848273,-500.0,0.00012054,2]
[352610633,1739197848283,-500.0,0.00012054,2]
[352610634,1739197848294,-151.0,0.000121,2]
[352610635,1739197848304,-500.0,0.00012127,2]
[352610636,1739197848314,-433.54177816,0.00012165,2]
[352610637,1739197848326,-584.4,0.00012191,2]
[352610638,1739197848342,-316.26,0.00012191,2]
[352610639,1739197848352,-599.21,0.00012191,2]
[352610640,1739197848363,-612.77,0.00012191,2]
[352610641,1739197848377,-500.0,0.00012191,2]
[352610642,1739197848387,-500.0,0.00012191,2]
[352610643,1739197848398,-522.02,0.00012191,2]
[352610644,1739197848409,-737.46,0.00012191,2]
[352610645,1739197848420,-500.0,0.00012191,2]
[352610646,1739197848432,-151.0,0.00012191,2]
[352610647,1739197848443,-151.0,0.00012191,2]
[352610648,1739197848454,-500.0,0.00012191,2]
[352610649,1739197848465,-500.0,0.00012191,2]
[352610650,1739197848475,-600.51,0.00012191,2]
[352610651,1739197848486,-588.39,0.00012191,2]
[352610652,1739197848496,-151.0,0.00012191,2]
[352610653,1739197848506,-151.0,0.00012191,2]
[352610654,1739197848517,-600.05,0.00012191,2]
[352610655,1739197848528,-500.0,0.00012191,2]
[352610656,1739197848538,-15451.01,0.00012191,2]
[352610657,1739197848548,-151.0,0.00012191,2]
[352610658,1739197848558,-268.30096,0.00012191,2]
[352610659,1739197848570,-500.0,0.00012191,2]
[352610660,1739197848580,-832.64,0.00012191,2]
[352610661,1739197848591,-268.30096,0.00012191,2]
[352610662,1739197848601,-500.0,0.00012191,2]
[352610663,1739197848613,-151.0,0.00012191,2]
[352610664,1739197848623,-1555.16,0.00012191,2]
[352610665,1739197848633,-6604.89,0.00012191,2]
[352610666,1739197848643,-500.0,0.00012191,2]
[352610667,1739197848653,-151.602746,0.00012191,2]
[352610668,1739197848663,-330.21,0.00012191,2]
[352610669,1739197848674,-558.35,0.00012191,2]
[352610670,1739197848684,-756.91,0.00012191,2]
[352610671,1739197848694,-503.66,0.00012191,2]
[352610672,1739197848703,-2039.84,0.00012191,2]
[352610673,1739197848713,-500.0,0.00012191,2]
[352610674,1739197848723,-500.0,0.00012191,2]
[352610675,1739197848733,-500.0,0.00012191,2]
[352610676,1739197848743,-664.98,0.00012191,2]
[352610677,1739197848753,-500.0,0.00012191,2]
[352610678,1739197848764,-500.0,0.00012191,2]
[352610679,1739197848773,-500.0,0.00012191,2]
[352610680,1739197848782,-3174.27,0.00012191,2]
[352610681,1739197848792,-5186.45,0.00012191,2]
[352610682,1739197848802,-500.0,0.00012191,2]
[352610683,1739197848812,-961.7,0.00012191,2]
[352610684,1739197848822,-1378.48,0.00012191,2]
[352610685,1739197848832,-579.9,0.00012191,2]
[352610686,1739197848842,-540.89,0.00012191,2]
[352610687,1739197848853,-1022.13,0.00012191,2]
[352610688,1739197848863,-422.36044086,0.00012191,2]
[352610689,1739197848874,-1347.21,0.00012191,2]
[352610690,1739197848884,-619.93,0.00012191,2]
[352610691,1739197848894,-500.0,0.00012191,2]
[352610692,1739197848906,-500.0,0.00012191,2]
[352610693,1739197848917,-500.0,0.00012191,2]
[352610694,1739197848929,-538.09,0.00012191,2]
[352610695,1739197848941,-500.0,0.00012191,2]
[352610696,1739197848954,-904.0,0.00012191,2]
[352610697,1739197848965,-518.8,0.00012191,2]
[352610698,1739197848975,-1280.31,0.00012191,2]
[352610699,1739197848987,-500.0,0.00012191,2]
[352610700,1739197848997,-2641.54523132,0.000122,2]
[352610701,1739197849007,-1000.0,0.00012273,2]
[352610702,1739197849018,-12813.92543969,0.00012279,5]
[352610703,1739197849030,-425.60971948,0.0001228,2]
[352610704,1739197849041,-151.068189,0.00012328,2]
[352610705,1739197849052,-151.0,0.00012328,2]
[352610706,1739197849063,-151.096621,0.00012328,2]
[352610707,1739197849075,-151.0,0.00012328,2]
[352610708,1739197849085,-151.0,0.00012328,2]
[352610709,1739197849095,-599.21,0.00012328,2]
[352610710,1739197849106,-612.77,0.00012328,2]
[352610711,1739197849116,-500.0,0.00012328,2]
[352610712,1739197849127,-500.0,0.00012328,2]
[352610713,1739197849138,-522.02,0.00012328,2]
[352610714,1739197849148,-737.46,0.00012328,2]
[352610715,1739197849158,-151.0,0.00012328,2]
[352610716,1739197849169,-151.0,0.00012328,2]
[352610717,1739197849182,-347.97,0.00012328,2]
[352610718,1739197849193,-387.060715,0.00012328,2]
[352610719,1739197849204,-387.060715,0.00012328,2]
[352610720,1739197849213,-500.0,0.00012328,2]
[352610721,1739197849223,-176.741177,0.00012328,2]
[352610722,1739197849233,-151.0,0.00012328,2]
[352610723,1739197849243,-500.0,0.00012328,2]
[352610724,1739197849253,-151.0,0.00012328,2]
[352610725,1739197849264,-151.0,0.00012328,2]
[352610726,1739197849274,-600.05,0.00012328,2]
[352610727,1739197849284,-500.0,0.00012328,2]
[352610728,1739197849295,-15451.01,0.00012328,2]
[352610729,1739197849305,-500.0,0.00012328,2]
[352610730,1739197849315,-832.64,0.00012328,2]
[352610731,1739197849326,-500.0,0.00012328,2]
[352610732,1739197849339,-151.0,0.00012328,2]
[352610733,1739197849349,-151.0,0.00012328,2]
[352610734,1739197849359,-1555.16,0.00012328,2]
[352610735,1739197849371,-6604.89,0.00012328,2]
[352610736,1739197849381,-500.0,0.00012328,2]
[352610737,1739197849390,-203.798839,0.00012328,2]
[352610738,1739197849400,-558.35,0.00012328,2]
[352610739,1739197849410,-203.798839,0.00012328,2]
[352610740,1739197849423,-756.91,0.00012328,2]
[352610741,1739197849432,-503.66,0.00012328,2]
[352610742,1739197849441,-2039.84,0.00012328,2]
[352610743,1739197849451,-500.0,0.00012328,2]
[352610744,1739197849460,-500.0,0.00012328,2]
[352610745,1739197849471,-500.0,0.00012328,2]
[352610746,1739197849480,-151.0,0.00012328,2]
[352610747,1739197849490,-664.98,0.00012328,2]
[352610748,1739197849500,-558.08,0.00012328,2]
[352610749,1739197849510,-151.0,0.00012328,2]
[352610750,1739197849520,-500.0,0.00012328,2]
[352610751,1739197849529,-500.0,0.00012328,2]
[352610752,1739197849539,-3174.27,0.00012328,2]
[352610753,1739197849549,-5186.45,0.00012328,2]
[352610754,1739197849558,-389.67,0.00012328,2]
[352610755,1739197849568,-961.7,0.00012328,2]
[352610756,1739197849578,-1378.48,0.00012328,2]
[352610757,1739197849588,-579.9,0.00012328,2]
[352610758,1739197849598,-540.89,0.00012328,2]
[352610759,1739197849607,-1022.13,0.00012328,2]
[352610760,1739197849617,-1347.21,0.00012328,2]
[352610761,1739197849626,-619.93,0.00012328,2]
[352610762,1739197849635,-500.0,0.00012328,2]
[352610763,1739197849646,-352.93,0.00012328,2]
[352610764,1739197849655,-500.0,0.00012328,2]
[352610765,1739197849665,-538.09,0.00012328,2]
[352610766,1739197849674,-500.0,0.00012328,2]
[352610767,1739197849684,-904.0,0.00012328,2]
[352610768,1739197849693,-518.8,0.00012328,2]
[352610769,1739197849703,-1280.31,0.00012328,2]
[352610770,1739197849712,-500.0,0.00012328,2]
[352610771,1739197849722,-495.164379,0.00012449,2]
[352610772,1739197849730,-495.164379,0.00012449,2]
[352610773,1739197849740,-151.0,0.00012449,2]
[352610774,1739197849749,-152.624458,0.00012449,2]
[352610775,1739197849758,-151.0,0.00012449,2]
[352610776,1739197849768,-5077.16345964,0.00012465,5]
[352610777,1739197849777,-161.289887,0.00012465,2]
[352610778,1739197849787,-161.289887,0.00012465,2]
[352610779,1739197849797,-599.21,0.00012465,2]
[352610780,1739197849806,-612.77,0.00012465,2]
[352610781,1739197849816,-500.0,0.00012465,2]
[352610782,1739197849825,-500.0,0.00012465,2]
[352610783,1739197849835,-522.02,0.00012465,2]
[352610784,1739197849844,-737.46,0.00012465,2]
[352610785,1739197849854,-500.0,0.00012465,2]
[352610786,1739197849863,-500.0,0.00012465,2]
[352610787,1739197849873,-600.05,0.00012465,2]
[352610788,1739197849883,-500.0,0.00012465,2]
[352610789,1739197849892,-15451.01,0.00012465,2]
[352610790,1739197849902,-500.0,0.00012465,2]
[352610791,1739197849911,-832.64,0.00012465,2]
[352610792,1739197849920,-500.0,0.00012465,2]
[352610793,1739197849932,-1555.16,0.00012465,2]
[352610794,1739197849941,-6604.89,0.00012465,2]
[352610795,1739197849950,-500.0,0.00012465,2]
[352610796,1739197849959,-558.35,0.00012465,2]
[352610797,1739197849969,-756.91,0.00012465,2]
[352610798,1739197849978,-503.66,0.00012465,2]
[352610799,1739197849988,-2039.84,0.00012465,2]
[352610800,1739197849997,-500.0,0.00012465,2]
[352610801,1739197850007,-281.764323,0.00012465,2]
[352610802,1739197850016,-495.24567255,0.00012465,2]
[352610803,1739197850027,-500.0,0.00012465,2]
[352610804,1739197850036,-281.764323,0.00012465,2]
[352610805,1739197850045,-664.98,0.00012465,2]
[352610806,1739197850055,-13267.29691025,0.00012465,2]
[352610807,1739197850064,-500.0,0.00012465,2]
[352610808,1739197850073,-500.0,0.00012465,2]
[352610809,1739197850083,-3174.27,0.00012465,2]
[352610810,1739197850092,-178.779312,0.00012465,2]
[352610811,1739197850102,-178.779312,0.00012465,2]
[352610812,1739197850111,-4975.5331594,0.00012465,2]
[352610813,1739197850126,-210.9168406,0.00012465,2]
[352610814,1739197850136,-961.7,0.00012465,2]
[352610815,1739197850146,-827.3831594,0.00012465,2]
[352610816,1739197850212,-551.0968406,0.00012465,2]
[352610817,1739197850224,-579.9,0.00012465,2]
[352610818,1739197850235,-540.89,0.00012465,2]
[352610819,1739197850245,-1022.13,0.00012465,2]
[352610820,1739197850254,-1347.21,0.00012465,2]
[352610821,1739197850265,-619.93,0.00012465,2]
[352610822,1739197850274,-500.0,0.00012465,2]
[352610823,1739197850284,-500.0,0.00012465,2]
[352610824,1739197850294,-538.09,0.00012465,2]
[352610825,1739197850304,-500.0,0.00012465,2]
[352610826,1739197850314,-904.0,0.00012465,2]
[352610827,1739197850324,-518.8,0.00012465,2]
[352610828,1739197850342,-1280.31,0.00012465,2]
[352610829,1739197850357,-500.0,0.00012465,2]
[352610830,1739197850368,-593.057,0.00012469,2]
[352610831,1739197850383,-271.065,0.00012535,2]
[352610832,1739197850393,-151.0,0.00012537,2]
[352610833,1739197850402,-151.0,0.00012537,2]
[352610834,1739197850413,-151.0,0.00012537,2]
[352610835,1739197850425,-151.0,0.00012537,2]
[352610836,1739197850435,-151.0,0.000126,2]
[352610837,1739197850445,-151.0,0.00012602,2]
[352610838,1739197850454,-151.0,0.00012602,2]
[352610839,1739197850463,-151.0,0.00012602,2]
[352610840,1739197850473,-599.21,0.00012602,2]
[352610841,1739197850483,-612.77,0.00012602,2]
[352610842,1739197850493,-500.0,0.00012602,2]
[352610843,1739197850502,-500.0,0.00012602,2]
[352610844,1739197850512,-125.55622395,0.00012602,2]
[352610845,1739197850830,-500.0,0.00010958,2]
[352610846,1739197850840,-500.0,0.00010958,2]
[352610847,1739197850849,-222.88771993,0.00011095,2]
[352610849,1739198842126,-300.0,9.63e-05,2]
[352610850,1739198842147,-150.0,9.631e-05,2]
[352610851,1739198846081,-396.24937797,9.631e-05,2]
[352610852,1739198849087,-5052.34931257,9.631e-05,2]
[352610853,1739198849131,-11815.88357608,9.631e-05,2]
[352610854,1739198945125,-250.0,9.345e-05,2]
[352610855,1739198945147,-2630.0906309,9.44e-05,2]
[352610856,1739198945169,-339.6297755,9.525e-05,2]
[352610857,1739198945191,-927.36465807,9.535e-05,2]
[352610858,1739198945213,-5330.27423188,9.631e-05,2]
[352610859,1739198945235,-263.23340745,9.789e-05,2]
[352610860,1739198945261,-36.76659255,9.789e-05,2]
[352610861,1739198945282,-638.51848901,9.79e-05,2]
[352610862,1739198949158,-2160.999999,9.99e-05,2]
[352610863,1739198949180,-1555.0,0.0001,2]
[352610864,1739198949201,-1554.0,0.0001,2]
[352610865,1739198949225,-1554.0,0.0001,2]
[352610866,1739198949366,-1385.126801,0.0001,2]
[352610867,1739198954240,-168.873199,0.0001,2]
[352610868,1739198954262,-480.2233039,0.00010164,2]
[352611087,1739199037211,-400.0,0.00010685,2]
[352611089,1739199037221,-2075.2767405,0.00010756,2]
[352611091,1739199037231,-1465.46011962,0.000108,2]
[352611093,1739199037240,-7438.69753278,0.0001093,2]
[352611095,1739199037249,-300.0,0.00010931,2]
[352611097,1739199037258,-500.0,0.00010957,2]
[352611100,1739199037268,-500.0,0.00010958,2]
[352611101,1739199037278,-500.0,0.00010958,2]
[352611104,1739199037287,-536.54576892,0.00010958,2]
[352611105,1739199037296,-500.0,0.00010958,2]
[352611108,1739199037306,-506.07222546,0.00010958,2]
[352611109,1739199037315,-509.88848356,0.00010958,2]
[352611111,1739199037324,-500.0,0.00010958,2]
[352611114,1739199037333,-410.87524537,0.00010958,2]
[352611116,1739199037342,-500.0,0.00010958,2]
[352611118,1739199037352,-500.0,0.00010958,2]
[352611120,1739199037361,-602.47,0.00010958,2]
[352611122,1739199037371,-500.0,0.00010958,2]
[352611124,1739199037381,-500.0,0.00010958,2]
[352611126,1739199037390,-500.0,0.00010958,2]
[352611128,1739199037399,-500.0,0.00010958,2]
[352611130,1739199037408,-500.0,0.00010958,2]
[352611132,1739199037418,-500.0,0.00010958,2]
[352611134,1739199037430,-500.0,0.00010958,2]
[352611136,1739199037439,-500.0,0.00010958,2]
[352611138,1739199037448,-500.0,0.00010958,2]
[352611139,1739199037457,-500.0,0.00010958,2]
[352611140,1739199037467,-504.29003752,0.00010958,2]
[352611141,1739199037476,-500.0,0.00010958,2]
[352611142,1739199037486,-500.0,0.00010958,2]
[352611143,1739199037495,-500.0,0.00010958,2]
[352611144,1739199037504,-500.0,0.00010958,2]
[352611145,1739199037513,-500.0,0.00010958,2]
[352611146,1739199037523,-500.0,0.00010958,2]
[352611147,1739199037532,-500.0,0.00010958,2]
[352611148,1739199037541,-500.0,0.00010958,2]
[352611149,1739199037551,-500.0,0.00010958,2]
[352611150,1739199037561,-500.0,0.00010958,2]
[352611151,1739199037570,-500.0,0.00010958,2]
[352611152,1739199037581,-500.0,0.00010958,2]
[352611153,1739199037590,-248.77942215,0.00010958,2]
[352611154,1739199037599,-500.0,0.00010958,2]
[352611155,1739199037609,-500.0,0.00010958,2]
[352611156,1739199037618,-500.0,0.00010958,2]
[352611157,1739199037627,-500.0,0.00010958,2]
[352611158,1739199037637,-500.0,0.00010958,2]
[352611159,1739199037646,-521.09563371,0.00010958,2]
[352611160,1739199037655,-500.0,0.00010958,2]
[352611161,1739199037664,-500.0,0.00010958,2]
[352611162,1739199037675,-523.03,0.00010958,2]
[352611163,1739199037689,-500.0,0.00010958,2]
[352611164,1739199037698,-500.0,0.00010958,2]
[352611165,1739199037708,-500.0,0.00010958,2]
[352611166,1739199037722,-500.0,0.00010958,2]
[352611167,1739199037731,-507.29,0.00010958,2]
[352611168,1739199037742,-500.0,0.00010958,2]
[352611169,1739199037752,-399.05238333,0.00010958,2]
[352611170,1739199037762,-500.0,0.00010958,2]
[352611171,1739199037772,-500.0,0.00010958,2]
[352611172,1739199037781,-500.0,0.00010958,2]
[352611173,1739199037791,-500.0,0.00010958,2]
[352611174,1739199037800,-500.0,0.00010958,2]
[352611175,1739199037811,-500.0,0.00010958,2]
[352611176,1739199037820,-500.0,0.00010958,2]
[352611177,1739199037830,-500.0,0.00010958,2]
[352611178,1739199037840,-500.0,0.00010958,2]
[352611179,1739199037849,-500.0,0.00010958,2]
[352611180,1739199037859,-500.0,0.00010958,2]
[352611181,1739199037868,-500.0,0.00010958,2]
[352611182,1739199037878,-500.0,0.00010958,2]
[352611183,1739199037887,-500.0,0.00010958,2]
[352611184,1739199037897,-500.0,0.00010958,2]
[352611185,1739199037907,-500.0,0.00010958,2]
[352611186,1739199037916,-500.0,0.00010958,2]
[352611187,1739199037926,-500.0,0.00010958,2]
[352611189,1739199037938,-500.0,0.00010958,2]
[352611190,1739199037947,-500.0,0.00010958,2]
[352611191,1739199037957,-500.0,0.00010958,2]
[352611192,1739199037967,-500.0,0.00010958,2]
[352611193,1739199037977,-500.0,0.00010958,2]
[352611194,1739199037987,-248.360475,0.00010958,2]
[352611195,1739199037997,-460.53401954,0.00010958,2]
[352611196,1739199038006,-500.0,0.00010958,2]
[352611197,1739199038016,-500.0,0.00010958,2]
[352611198,1739199038026,-500.0,0.00010958,2]
[352611199,1739199038035,-500.0,0.00010958,2]
[352611200,1739199038045,-500.0,0.00010958,2]
[352611201,1739199038054,-500.0,0.00010958,2]
[352611202,1739199038064,-500.0,0.00010958,2]
[352611203,1739199038073,-500.0,0.00010958,2]
[352611204,1739199038083,-503.49486909,0.00010958,2]
[352611205,1739199038092,-500.0,0.00010958,2]
[352611206,1739199038102,-500.0,0.00010958,2]
[352611207,1739199038111,-656.29,0.00010958,2]
[352611208,1739199038122,-500.0,0.00010958,2]
[352611209,1739199038131,-500.0,0.00010958,2]
[352611210,1739199038141,-500.0,0.00010958,2]
[352611211,1739199038151,-500.0,0.00010958,2]
[352611212,1739199038160,-301.6149098,0.00010958,2]
[352611213,1739199038171,-500.0,0.00010958,2]
[352611214,1739199038184,-500.0,0.00010958,2]
[352611215,1739199038193,-500.0,0.00010958,2]
[352611216,1739199038203,-500.0,0.00010958,2]
[352611217,1739199038212,-500.0,0.00010958,2]
[352611218,1739199038221,-500.0,0.00010958,2]
[352611219,1739199038231,-500.0,0.00010958,2]
[352611220,1739199038240,-502.08279943,0.00010958,2]
[352611221,1739199038250,-500.0,0.00010958,2]
[352611222,1739199038259,-500.0,0.00010958,2]
[352611223,1739199038269,-500.0,0.00010958,2]
[352611224,1739199038278,-500.0,0.00010958,2]
[352611225,1739199038287,-500.0,0.00010958,2]
[352611226,1739199038297,-500.0,0.00010958,2]
[352611227,1739199038306,-500.0,0.00010958,2]
[352611229,1739199038315,-500.0,0.00010958,2]
[352611231,1739199038324,-500.0,0.00010958,2]
[352611233,1739199038334,-500.0,0.00010958,2]
[352611235,1739199038343,-500.0,0.00010958,2]
[352611237,1739199038353,-500.0,0.00010958,2]
[352611239,1739199038363,-500.0,0.00010958,2]
[352611241,1739199038372,-500.0,0.00010958,2]
[352611243,1739199038381,-502.36942426,0.00010958,2]
[352611245,1739199038390,-500.0,0.00010958,2]
[352611247,1739199038399,-500.0,0.00010958,2]
[352611248,1739199038408,-500.0,0.00010958,2]
[352611250,1739199038417,-502.93224134,0.00010958,2]
[352611252,1739199038426,-500.0,0.00010958,2]
[352611254,1739199038437,-500.0,0.00010958,2]
[352611256,1739199038447,-500.0,0.00010958,2]
[352611258,1739199038456,-500.0,0.00010958,2]
[352611260,1739199038466,-500.0,0.00010958,2]
[352611262,1739199038475,-500.0,0.00010958,2]
[352611264,1739199038485,-500.0,0.00010958,2]
[352611267,1739199038494,-501.23005317,0.00010958,2]
[352611268,1739199038503,-500.0,0.00010958,2]
[352611271,1739199038512,-500.0,0.00010958,2]
[352611273,1739199038521,-500.0,0.00010958,2]
[352611275,1739199038531,-614.81788372,0.00010958,2]
[352611289,1739199038653,-500.0,0.00010958,2]
[352611291,1739199038664,-260.02934263,0.00010958,2]
[352611293,1739199038673,-500.0,0.00010958,2]
[352611295,1739199038684,-500.0,0.00010958,2]
[352611297,1739199038693,-500.0,0.00010958,2]
[352611299,1739199038703,-500.0,0.00010958,2]
[352611301,1739199038713,-500.0,0.00010958,2]
[352611303,1739199038725,-500.0,0.00010958,2]
[352611305,1739199038735,-500.0,0.00010958,2]
[352611307,1739199038744,-500.0,0.00010958,2]
[352611309,1739199038755,-177.69,0.00010958,2]
[352611311,1739199038764,-500.0,0.00010958,2]
[352611313,1739199038773,-500.0,0.00010958,2]
[352611315,1739199038782,-500.0,0.00010958,2]
[352611317,1739199038791,-500.0,0.00010958,2]
[352611319,1739199038803,-222.47802965,0.00010958,2]
[352611321,1739199038813,-500.0,0.00010958,2]
[352611323,1739199038822,-482.67531648,0.00010958,2]
[352611325,1739199038832,-500.0,0.00010958,2]
[352611327,1739199038841,-503.37826417,0.00010958,2]
[352611329,1739199038850,-500.0,0.00010958,2]
[352611331,1739199038859,-500.0,0.00010958,2]
[352611333,1739199038869,-500.0,0.00010958,2]
[352611335,1739199038878,-500.0,0.00010958,2]
[352611337,1739199038889,-500.0,0.00010958,2]
[352611339,1739199038899,-12476.61,0.00010958,2]
[352611341,1739199038908,-500.0,0.00010958,2]
[352611343,1739199038918,-500.0,0.00010958,2]
[352611345,1739199038927,-500.0,0.00010958,2]
[352611347,1739199038939,-500.0,0.00010958,2]
[352611349,1739199038948,-500.0,0.00010958,2]
[352611351,1739199038957,-500.0,0.00010958,2]
[352611353,1739199038966,-500.0,0.00010958,2]
[352611356,1739199038976,-673.71,0.00010958,2]
[352611359,1739199038985,-2196.56,0.00010958,2]
[352611361,1739199038995,-500.0,0.00010958,2]
[352611364,1739199039004,-626.07,0.00010958,2]
[352611367,1739199039013,-500.0,0.00010958,2]
[352611369,1739199039023,-500.0,0.00010958,2]
[352611371,1739199039032,-605.68,0.00010958,2]
[352611373,1739199039042,-500.0,0.00010958,2]
[352611375,1739199039051,-500.0,0.00010958,2]
[352611377,1739199039061,-500.0,0.00010958,2]
[352611379,1739199039070,-500.0,0.00010958,2]